bitfinex-derivatives/quotes_BTCF0:USTF0_20260113
["timestamp","ask_amount","ask_price","bid_price","bid_amount"]
[1768336995623,0.18184937,94318.0,94280.0,0.241]
[1768336995823,0.19228597,94310.0,94280.0,0.33652]
[1768336996035,0.19228597,94303.0,94280.0,0.33652]
[1768336996228,0.19228597,94295.0,94280.0,0.33652]
[1768336997824,0.09163484,94302.0,94280.0,0.43306322]
[1768336998024,0.09163484,94309.0,94285.0,0.09064478]
[1768336998232,0.18715484,94308.0,94286.0,0.09654322]
[1768336998525,0.18674741,94307.0,94286.0,0.50654322]
[1768336998733,0.09163484,94306.0,94286.0,0.50654322]
[1768336999132,0.09163484,94306.0,94286.0,0.41]
[1768336999429,0.09163484,94305.0,94286.0,0.391]
[1768337000134,0.09163484,94305.0,94286.0,0.48652]
[1768337000522,0.09163484,94305.0,94286.0,0.391]
[1768337000723,0.09163484,94305.0,94286.0,0.48652]
[1768337001437,0.09163484,94305.0,94286.0,0.391]
[1768337001728,0.09163484,94305.0,94287.0,0.09552]
[1768337001929,0.09163484,94305.0,94287.0,0.56552]
[1768337002231,0.09163484,94305.0,94287.0,0.47]
[1768337002431,0.09163484,94305.0,94287.0,0.56552]
[1768337002831,0.09163484,94305.0,94287.0,0.47]
[1768337003031,0.09163484,94305.0,94288.0,0.09552]
[1768337003227,0.09163484,94311.0,94289.0,0.09654322]
[1768337003428,0.09163484,94311.0,94290.0,0.09654322]
[1768337003625,0.09163484,94311.0,94291.0,0.09654322]
[1768337003933,0.09163484,94311.0,94291.0,0.54654322]
[1768337004632,0.17796421,94318.0,94294.0,0.09064478]
[1768337004833,0.17796421,94318.0,94296.0,0.09654322]
[1768337005132,0.09163484,94317.0,94297.0,0.09654322]
[1768337005334,0.09163484,94317.0,94298.0,0.00015908]
[1768337005635,0.09163484,94317.0,94298.0,0.37015908]
[1768337006225,0.09163484,94317.0,94299.0,0.09654322]
[1768337006429,0.09511257,94314.0,94280.0,0.08]
[1768337006623,0.09552,94316.0,94281.0,0.19206322]
[1768337006624,0.09163484,94309.0,94281.0,0.19206322]
[1768337006827,0.09163484,94307.0,94282.0,0.09654322]
[1768337007038,0.09511257,94306.0,94282.0,0.14654322]
[1768337007339,0.18674741,94306.0,94282.0,0.12654322]
[1768337007735,0.18674741,94306.0,94282.0,0.14064478]
[1768337007936,0.18674741,94306.0,94283.0,0.09064478]
[1768337008123,0.18674741,94306.0,94283.0,0.23064478]
[1768337008540,0.09511257,94311.0,94284.0,0.09064478]
[1768337008726,0.09511257,94311.0,94285.0,0.09064478]
[1768337008926,0.09163484,94313.0,94286.0,0.09064478]
[1768337009127,0.09163484,94313.0,94288.0,0.09654322]
[1768337009327,0.09163484,94313.0,94291.0,0.09654322]
[1768337009530,0.09163484,94313.0,94291.0,0.15654322]
[1768337009730,0.09163484,94313.0,94292.0,0.09552]
[1768337009930,0.09163484,94313.0,94292.0,0.15552]
[1768337010130,0.09163484,94313.0,94292.0,0.16552]
[1768337010436,0.08632937,94318.0,94300.0,0.09654322]
[1768337010737,0.09368785,94320.0,94300.0,0.06]
[1768337010937,0.09511257,94316.0,94300.0,0.06]
[1768337011132,0.09163484,94315.0,94300.0,0.06]
[1768337011338,0.09511257,94312.0,94296.0,0.09552]
[1768337011527,0.09511257,94308.0,94296.0,0.05362213]
[1768337011729,0.09163484,94309.0,94296.0,0.05362213]
[1768337011928,0.09163484,94309.0,94296.0,0.10362213]
[1768337012537,0.09163484,94309.0,94296.0,0.07]
[1768337012732,0.09163484,94309.0,94296.0,0.16552]
[1768337013540,0.09511257,94312.0,94296.0,0.16552]
[1768337014133,0.09511257,94312.0,94296.0,0.43552]
[1768337014729,0.09163484,94315.0,94297.0,0.09654322]
[1768337014934,0.08481634,94318.0,94297.0,0.42354322]
[1768337015134,0.09084322,94320.0,94297.0,0.42354322]
[1768337015344,0.182827,94320.0,94297.0,0.42354322]
[1768337015645,0.182827,94320.0,94297.0,0.37]
[1768337015942,0.182827,94320.0,94298.0,0.09866602]
[1768337015943,0.09084322,94320.0,94298.0,0.09866602]
[1768337016143,0.09084322,94320.0,94299.0,0.09866602]
[1768337016442,0.01789711,94322.0,94300.0,0.09866602]
[1768337016636,0.18750378,94324.0,94300.0,0.41866602]
[1768337016839,0.18750378,94324.0,94301.0,0.09778211]
[1768337017043,0.278347,94324.0,94302.0,0.09778211]
[1768337017341,0.09084322,94323.0,94302.0,0.42778211]
[1768337017738,0.17369025,94323.0,94302.0,0.42778211]
[1768337018553,0.19229499,94323.0,94302.0,0.42778211]
[1768337019739,0.19229499,94323.0,94304.0,0.09778211]
[1768337019937,0.28427877,94323.0,94304.0,0.35]
[1768337020246,0.09084322,94321.0,94304.0,0.35]
[1768337020449,0.09198378,94320.0,94304.0,0.35]
[1768337020642,0.09084322,94319.0,94304.0,0.35]
[1768337022147,0.09084322,94317.0,94304.0,0.35]
[1768337022547,0.09084322,94317.0,94304.0,0.316]
[1768337024952,0.182827,94321.0,94304.0,0.316]
[1768337025454,0.09084322,94321.0,94304.0,0.316]
[1768337025953,0.10145177,94323.0,94305.0,0.19644813]
[1768337026250,0.09552,94327.0,94307.0,0.09778211]
[1768337026440,0.09084322,94328.0,94307.0,0.32]
[1768337026839,0.182827,94328.0,94307.0,0.32]
[1768337027046,0.09198378,94327.0,94307.0,0.32]
[1768337027246,0.265993,94327.0,94307.0,0.32]
[1768337027446,0.17400922,94327.0,94307.0,0.41866602]
[1768337027652,0.083166,94327.0,94308.0,0.09866602]
[1768337027948,0.09198378,94332.0,94308.0,0.09866602]
[1768337027949,0.09198378,94332.0,94309.0,0.09866602]
[1768337028156,0.09198378,94332.0,94309.0,0.55866602]
[1768337028362,0.09198378,94332.0,94309.0,0.62051332]
[1768337028557,0.182827,94332.0,94310.0,0.0618473]
[1768337028850,0.01826868,94332.0,94313.0,0.0618473]
[1768337029154,0.09198378,94336.0,94313.0,0.0618473]
[1768337029155,0.09198378,94336.0,94314.0,0.0618473]
[1768337029353,0.182827,94336.0,94314.0,0.3918473]
[1768337029555,0.09198378,94335.0,94314.0,0.3918473]
[1768337030056,0.11049778,94335.0,94314.0,0.3918473]
[1768337030245,0.11049778,94335.0,94314.0,0.3768473]
[1768337031450,0.018514,94335.0,94315.0,0.09866602]
[1768337031647,0.17531573,94336.0,94316.0,0.09866602]
[1768337031841,0.08447251,94336.0,94317.0,0.09866602]
[1768337032147,0.14617623,94337.0,94317.0,0.31866602]
[1768337032346,0.14617623,94337.0,94317.0,0.36561151]
[1768337032762,0.09084322,94335.0,94317.0,0.22]
[1768337033455,0.09198378,94332.0,94317.0,0.22]
[1768337033648,0.09198378,94332.0,94317.0,0.06]
[1768337033842,0.09198378,94332.0,94317.0,0.15]
[1768337034555,0.09084322,94333.0,94317.0,0.15]
[1768337034948,0.16108673,94337.0,94317.0,0.19701309]
[1768337035155,0.00015908,94334.0,94317.0,0.19701309]
[1768337035657,0.00015908,94334.0,94317.0,0.19718601]
[1768337036052,0.00015908,94334.0,94317.0,0.24866602]
[1768337036248,0.09214286,94334.0,94317.0,0.15]
[1768337036959,0.09214286,94334.0,94317.0,0.14469513]
[1768337037961,0.09214286,94334.0,94317.0,0.13169513]
[1768337038161,0.00015908,94334.0,94317.0,0.13169513]
[1768337039052,0.00015908,94334.0,94318.0,0.14617133]
[1768337039263,0.00015908,94334.0,94320.0,0.04750531]
[1768337039560,0.00015908,94334.0,94322.0,0.04878255]
[1768337039761,0.00015908,94334.0,94323.0,0.09552]
[1768337039958,0.01844672,94337.0,94325.0,0.04862347]
[1768337040146,0.09198378,94346.0,94325.0,0.01]
[1768337040352,0.182827,94345.0,94325.0,0.01]
[1768337040651,0.182827,94343.0,94325.0,0.01]
[1768337040852,0.26857378,94343.0,94325.0,0.01]
[1768337041052,0.182827,94342.0,94325.0,0.01]
[1768337041254,0.09084322,94341.0,94325.0,0.01]
[1768337041957,0.08574678,94343.0,94325.0,0.01]
[1768337042155,0.18636322,94354.0,94326.0,0.09866602]
[1768337042351,0.08850152,94353.0,94327.0,0.09866602]
[1768337042557,0.09084322,94352.0,94328.0,0.09866602]
[1768337042756,0.182827,94351.0,94328.0,0.15866602]
[1768337042953,0.09084322,94350.0,94328.0,0.15866602]
[1768337043266,0.01847033,94351.0,94329.0,0.09866602]
[1768337043559,0.08850152,94353.0,94330.0,0.09866602]
[1768337043766,0.02405003,94353.0,94331.0,0.09866602]
[1768337044067,0.02405003,94353.0,94332.0,0.09866602]
[1768337044267,0.02405003,94353.0,94333.0,0.09866602]
[1768337044463,0.14120016,94369.0,94335.0,0.09866602]
[1768337044760,0.05035694,94369.0,94336.0,0.09866602]
[1768337044963,0.0931264,94364.0,94337.0,0.09027958]
[1768337045167,0.0903696,94363.0,94343.0,0.00015899]
[1768337045354,0.183496,94363.0,94343.0,0.05015899]
[1768337045555,0.11166488,94363.0,94343.0,0.05015899]
[1768337045754,0.11166488,94363.0,94343.0,0.04115899]
[1768337048266,0.0931264,94362.0,94343.0,0.04115899]
[1768337049467,0.09357016,94353.0,94343.0,0.04115899]
[1768337049666,0.0931264,94362.0,94343.0,0.04115899]
[1768337049864,0.0931264,94352.0,94343.0,0.04115899]
[1768337050063,0.0931264,94352.0,94343.0,0.04]
[1768337050269,0.09357016,94353.0,94343.0,0.13548]
[1768337051157,0.09357016,94353.0,94343.0,0.04]
[1768337051356,0.0903696,94357.0,94343.0,0.13548]
[1768337051565,0.0903696,94362.0,94343.0,0.13548]
[1768337051767,0.18669656,94353.0,94343.0,0.13548]
[1768337051957,0.09357016,94353.0,94343.0,0.04]
[1768337052362,0.09357016,94350.0,94343.0,0.13548]
[1768337052563,0.09357016,94353.0,94343.0,0.04]
[1768337052772,0.09357016,94353.0,94343.0,0.13548]
[1768337053066,0.09357016,94353.0,94343.0,0.13017738]
[1768337053672,0.09357016,94353.0,94343.0,0.12617738]
[1768337054166,0.0931264,94350.0,94328.0,0.00069579]
[1768337054364,0.09357016,94340.0,94329.0,0.09548]
[1768337054567,0.09357016,94340.0,94329.0,0.25548]
[1768337054872,0.09357016,94340.0,94330.0,0.09548]
[1768337055073,0.0931264,94350.0,94330.0,0.23548]
[1768337055271,0.0931264,94349.0,94331.0,0.09548]
[1768337055471,0.0931264,94349.0,94331.0,0.21548]
[1768337055472,0.09357016,94341.0,94331.0,0.21548]
[1768337055775,0.09357016,94341.0,94331.0,0.12]
[1768337055966,0.09357016,94341.0,94332.0,0.09548]
[1768337056166,0.09357016,94341.0,94332.0,0.09]
[1768337056373,0.09357016,94341.0,94333.0,0.09548]
[1768337056673,0.09357016,94341.0,94333.0,0.06]
[1768337056968,0.09357016,94341.0,94334.0,0.09548]
[1768337057174,0.09357016,94341.0,94334.0,0.15548]
[1768337057562,0.09357016,94344.0,94334.0,0.15548]
[1768337057769,0.0931264,94349.0,94334.0,0.15548]
[1768337057971,0.09357016,94344.0,94334.0,0.15548]
[1768337060075,0.09357016,94344.0,94334.0,0.06]
[1768337060266,0.09357016,94344.0,94335.0,0.09548]
[1768337060573,0.09357016,94344.0,94335.0,0.15548]
[1768337061173,0.09357016,94344.0,94335.0,0.1501785]
[1768337061374,0.09357016,94344.0,94335.0,0.074]
[1768337061574,0.09357016,94344.0,94335.0,0.16948]
[1768337061871,0.09357016,94344.0,94335.0,0.14948]
[1768337062775,0.09357016,94344.0,94335.0,0.054]
[1768337063377,0.09357016,94344.0,94335.0,0.14948]
[1768337065474,0.0931264,94349.0,94335.0,0.14948]
[1768337065475,0.09357016,94345.0,94335.0,0.14948]
[1768337065772,0.09357016,94345.0,94335.0,0.054]
[1768337066175,0.09357016,94345.0,94335.0,0.14948]
[1768337066674,0.09357016,94345.0,94335.0,0.054]
[1768337066875,0.09357016,94345.0,94335.0,0.14948]
[1768337067368,0.09357016,94360.0,94335.0,0.14948]
[1768337067369,0.09357016,94360.0,94342.0,0.01346984]
[1768337067574,0.09357016,94360.0,94343.0,0.01346984]
[1768337067774,0.09357016,94360.0,94343.0,0.06346984]
[1768337068080,0.09357016,94360.0,94343.0,0.05]
[1768337068474,0.18758522,94360.0,94343.0,0.05]
[1768337068671,0.18758522,94360.0,94344.0,0.09548]
[1768337068872,0.18758522,94360.0,94344.0,0.14548]
[1768337069071,0.18758522,94360.0,94344.0,0.14148]
[1768337069272,0.28116492,94360.0,94344.0,0.14148]
[1768337069472,0.28116492,94360.0,94344.0,0.05]
[1768337069672,0.09357016,94354.0,94345.0,0.09548]
[1768337069869,0.09357016,94354.0,94346.0,0.09548]
[1768337070067,0.09357016,94354.0,94346.0,0.15548]
[1768337071580,0.18759476,94360.0,94346.0,0.15548]
[1768337071877,0.09357016,94356.0,94346.0,0.15548]
[1768337073466,0.09357016,94356.0,94346.0,0.06]
[1768337073678,0.09357016,94356.0,94346.0,0.15548]
[1768337073875,0.18758522,94360.0,94346.0,0.15548]
[1768337074075,0.09357016,94360.0,94347.0,0.01706604]
[1768337074276,0.09357016,94360.0,94347.0,0.06]
[1768337074578,0.09357016,94357.0,94347.0,0.06]
[1768337074777,0.09357016,94360.0,94347.0,0.06]
[1768337075982,0.09357016,94357.0,94347.0,0.06]
[1768337076878,0.09357016,94357.0,94347.0,0.033]
[1768337077277,0.09357016,94357.0,94346.0,0.09548]
[1768337077583,0.09357016,94357.0,94346.0,0.13548]
[1768337078780,0.09357016,94360.0,94346.0,0.13548]
[1768337079371,0.09401506,94362.0,94346.0,0.13548]
[1768337079576,0.09357016,94360.0,94346.0,0.13548]
[1768337079782,0.09357016,94360.0,94345.0,0.09548]
[1768337079982,0.09357016,94360.0,94345.0,0.13548]
[1768337080384,0.09357016,94355.0,94345.0,0.13548]
[1768337083584,0.09357016,94355.0,94345.0,0.04]
[1768337083780,0.1943265,94349.0,94333.0,0.00530037]
[1768337083969,0.18714032,94343.0,94333.0,0.09548]
[1768337084169,0.09357016,94343.0,94333.0,0.23187557]
[1768337084573,0.09473638,94336.0,94316.0,0.09230915]
[1768337084879,0.09357016,94326.0,94316.0,0.34]
[1768337085076,0.09357016,94326.0,94316.0,0.09]
[1768337085274,0.09357016,94326.0,94305.0,0.09548]
[1768337085275,0.09473638,94320.0,94305.0,0.09548]
[1768337085485,0.09357016,94314.0,94305.0,0.19]
[1768337085988,0.09357016,94314.0,94305.0,0.144]
[1768337086888,0.09357016,94314.0,94305.0,0.05]
[1768337087981,0.00015899,94319.0,94305.0,0.05]
[1768337088181,0.14612401,94343.0,94322.0,0.09433876]
[1768337088382,0.09357016,94340.0,94324.0,0.09433876]
[1768337088589,0.09357016,94332.0,94324.0,0.11433876]
[1768337088886,0.09357016,94334.0,94324.0,0.11433876]
[1768337089086,0.18008844,94334.0,94324.0,0.11433876]
[1768337089294,0.18008844,94334.0,94324.0,0.02]
[1768337089487,0.27482482,94334.0,94324.0,0.03]
[1768337091082,0.1335137,94396.0,94342.0,0.18664791]
[1768337091380,0.3235,94586.0,94342.0,0.18664791]
[1768337091381,0.30424107,94393.0,94366.0,0.09433876]
[1768337091589,0.09357016,94390.0,94366.0,0.09433876]
[1768337091787,0.09473638,94391.0,94366.0,0.09433876]
[1768337091988,0.09959012,94390.0,94370.0,0.00015899]
[1768337092295,0.19316028,94390.0,94370.0,0.00015899]
[1768337092792,0.09357016,94380.0,94370.0,0.00015899]
[1768337092978,0.09959012,94346.0,94317.0,0.08638118]
[1768337093186,0.09959012,94365.0,94337.0,0.09433876]
[1768337093383,0.1943265,94389.0,94354.0,0.09230915]
[1768337093695,0.11811894,94393.0,94363.0,0.08133876]
[1768337093995,0.1402894,94380.0,94364.0,0.09548]
[1768337094184,0.22442579,94380.0,94361.0,0.09548]
[1768337094386,0.32401591,94380.0,94361.0,0.09548]
[1768337094893,0.1402894,94371.0,94322.0,0.010605]
[1768337095090,0.1402894,94371.0,94323.0,0.56976]
[1768337095091,0.09959012,94370.0,94323.0,0.56976]
[1768337095296,0.09959012,94370.0,94323.0,0.62976]
[1768337095792,0.1943265,94370.0,94323.0,0.62976]
[1768337096096,0.09959012,94368.0,94335.0,0.18610955]
[1768337096396,0.09959012,94368.0,94339.0,0.09433876]
[1768337096595,0.09959012,94367.0,94339.0,0.09433876]
[1768337096997,0.09959012,94367.0,94340.0,0.09548]
[1768337097395,0.09473638,94366.0,94340.0,0.09548]
[1768337097597,0.1943265,94366.0,94340.0,0.09548]
[1768337098797,0.1943265,94366.0,94341.0,0.09548]
[1768337099188,0.1943265,94366.0,94341.0,0.08278]
[1768337099388,1.4041,94390.0,94343.0,0.18664791]
[1768337099584,1.4041,94390.0,94367.0,0.18664791]
[1768337099891,1.4041,94390.0,94371.0,0.18664791]
[1768337100092,1.4041,94390.0,94371.0,0.09433876]
[1768337100900,1.4041,94390.0,94373.0,0.09433876]
[1768337101301,1.30771317,94390.0,94374.0,0.08733876]
[1768337101599,1.1160256,94390.0,94374.0,0.08733876]
[1768337101900,0.09959012,94389.0,94368.0,0.09548]
[1768337102399,1.1160256,94390.0,94368.0,0.09548]
[1768337103094,0.00156526,94379.0,94368.0,0.09548]
[1768337103598,0.00529588,94413.0,94387.0,0.010597]
[1768337103796,0.09473638,94443.0,94400.0,0.1402894]
[1768337103797,0.10488488,94433.0,94400.0,0.1402894]
[1768337103995,0.10488488,94433.0,94401.0,0.42924]
[1768337103996,0.09959012,94432.0,94401.0,0.42924]
[1768337104299,0.09959012,94429.0,94402.0,0.09544]
[1768337104484,0.09959012,94429.0,94403.0,0.09544]
[1768337104687,0.09959012,94429.0,94404.0,0.09544]
[1768337104887,0.0001589,94425.0,94404.0,0.09544]
[1768337105898,0.0001589,94425.0,94396.0,0.9092]
[1768337106202,0.0001589,94425.0,94397.0,0.09544]
[1768337107389,0.0001589,94425.0,94380.0,0.1402894]
[1768337107594,0.0001589,94425.0,94390.0,0.1402894]
[1768337108303,0.0001589,94425.0,94391.0,1.00456]
[1768337108504,0.0001589,94425.0,94400.0,0.1402894]
[1768337108705,0.0001589,94425.0,94391.0,1.00456]
[1768337109304,0.0001589,94425.0,94392.0,0.010597]
[1768337109499,0.0001589,94425.0,94400.0,0.1402894]
[1768337110503,0.0001589,94425.0,94410.0,0.1402894]
[1768337110802,0.0001589,94425.0,94411.0,1.00452]
[1768337111197,0.0001589,94425.0,94412.0,0.09544]
[1768337112305,1.0352159,94425.0,94412.0,0.09544]
[1768337112903,1.0352159,94425.0,94388.0,0.010597]
[1768337113207,0.0001589,94425.0,94389.0,0.62388]
[1768337113390,0.0001589,94425.0,94390.0,0.33752]
[1768337113593,0.0001589,94425.0,94390.0,0.38752]
[1768337114009,0.0001589,94425.0,94390.0,0.35251999]
[1768337114411,0.0001589,94425.0,94390.0,0.05]
[1768337114412,0.09413897,94421.0,94390.0,0.05]
[1768337114706,0.09413897,94421.0,94391.0,1.00424]
[1768337114909,0.09413897,94421.0,94391.0,1.05424]
[1768337115402,0.09413897,94420.0,94391.0,1.05424]
[1768337116905,1.035057,94422.0,94391.0,1.05424]
[1768337118107,0.00529364,94453.0,94400.0,0.41102382]
[1768337118409,0.00529364,94453.0,94417.0,0.010594]
[1768337118607,0.00529364,94453.0,94418.0,1.00416]
[1768337118808,0.02395399,94453.0,94425.0,0.010593]
[1768337119213,0.02395399,94453.0,94422.0,0.010593]
[1768337119712,0.02395399,94453.0,94430.0,0.0001589]
[1768337119911,0.02395399,94453.0,94431.0,0.0954]
[1768337120113,0.10245366,94449.0,94431.0,0.0954]
[1768337120610,0.09245366,94449.0,94431.0,0.0954]
[1768337121620,0.09868567,94448.0,94431.0,0.0954]
[1768337121822,0.09868567,94448.0,94407.0,0.010595]
[1768337122022,0.09868567,94448.0,94408.0,1.00376]
[1768337122205,0.09868567,94448.0,94408.0,0.06]
[1768337122407,0.09868567,94446.0,94409.0,1.00376]
[1768337122719,0.09868567,94445.0,94409.0,1.06376]
[1768337123420,0.09868567,94443.0,94409.0,1.06376]
[1768337124021,0.09245366,94442.0,94409.0,1.06376]
[1768337124225,0.09868567,94441.0,94409.0,1.06376]
[1768337129214,0.09868567,94441.0,94409.0,0.06]
[1768337129521,0.09868567,94440.0,94410.0,0.0954]
[1768337129718,0.09868567,94440.0,94410.0,0.1554]
[1768337129919,0.09868567,94440.0,94410.0,0.1384]
[1768337132822,0.09105715,94436.0,94410.0,0.05486302]
[1768337133029,0.09868567,94430.0,94410.0,0.01]
[1768337133332,0.09868567,94430.0,94410.0,0.05]
[1768337133532,0.09868567,94429.0,94410.0,0.05]
[1768337133725,0.09868567,94427.0,94410.0,0.03660556]
[1768337134121,0.0954,94435.0,94410.0,0.03660556]
[1768337134122,0.09868567,94425.0,94410.0,0.03660556]
[1768337134328,0.09868567,94408.0,94384.0,0.0954]
[1768337134634,0.4,94435.0,94384.0,0.0954]
[1768337134635,0.09868567,94416.0,94385.0,0.02820791]
[1768337134832,0.0954,94415.0,94386.0,0.02820791]
[1768337135031,0.09868567,94416.0,94387.0,0.02804901]
[1768337135229,0.0954,94414.0,94391.0,0.0001589]
[1768337135425,0.0954,94414.0,94391.0,0.0601589]
[1768337136126,0.0954,94414.0,94391.0,0.08820791]
[1768337137732,0.0954,94414.0,94391.0,0.04220791]
[1768337138929,0.09752523,94413.0,94391.0,0.0141589]
[1768337141422,0.09245366,94404.0,94391.0,0.0141589]
[1768337142233,0.09752523,94403.0,94391.0,0.0141589]
[1768337142433,0.19669131,94400.0,94373.0,0.00184149]
[1768337142638,0.09752523,94397.0,94373.0,0.06184149]
[1768337144629,0.09752523,94396.0,94373.0,0.06]
[1768337144835,0.19669131,94396.0,94373.0,0.06]
[1768337145139,0.09752523,94395.0,94373.0,0.06]
[1768337145636,0.09752523,94395.0,94373.0,0.042]
[1768337147342,0.09752523,94395.0,94373.0,0.052]
[1768337150440,0.09752523,94389.0,94373.0,0.03]
[1768337150738,0.09752523,94383.0,94373.0,0.04]
[1768337150936,0.09752523,94382.0,94373.0,0.03]
[1768337151142,0.09752523,94381.0,94373.0,0.03]
[1768337151333,0.0954,94388.0,94354.0,0.09]
[1768337151334,0.09752523,94372.0,94354.0,0.09]
[1768337151641,0.01844386,94372.0,94354.0,0.07]
[1768337151842,0.09752523,94379.0,94354.0,0.07]
[1768337152031,0.11591351,94379.0,94354.0,0.07]
[1768337153342,0.11591351,94379.0,94354.0,0.26]
[1768337153541,0.11591351,94379.0,94354.0,0.238]
[1768337153844,0.11591351,94379.0,94354.0,0.33211794]
[1768337154038,0.11591351,94379.0,94355.0,0.09411794]
[1768337154241,0.05708325,94406.0,94355.0,0.09411794]
[1768337154242,0.09752523,94398.0,94373.0,0.09411794]
[1768337154433,0.09916608,94400.0,94375.0,0.09411794]
[1768337154434,0.0954,94400.0,94375.0,0.09411794]
[1768337154633,0.09752523,94398.0,94376.0,0.09411794]
[1768337154833,0.09752523,94398.0,94376.0,0.13411794]
[1768337156140,0.09752523,94398.0,94376.0,0.04]
[1768337156643,0.09752523,94397.0,94376.0,0.04]
[1768337157230,0.09752523,94394.0,94376.0,0.04]
[1768337157430,0.09916608,94390.0,94376.0,0.04]
[1768337157633,0.09752523,94389.0,94376.0,0.04]
[1768337160543,0.59952,94415.0,94376.0,0.04]
[1768337160544,0.09752523,94428.0,94393.0,0.09217763]
[1768337160747,0.09752523,94428.0,94401.0,0.09411794]
[1768337160934,0.09752523,94428.0,94402.0,0.09411794]
[1768337161135,0.11619226,94428.0,94403.0,0.09411794]
[1768337161341,0.11619226,94428.0,94403.0,0.07611794]
[1768337162943,0.09752523,94427.0,94400.0,0.09544]
[1768337163145,0.09752523,94427.0,94400.0,0.11544]
[1768337168949,0.09752523,94427.0,94400.0,0.10044]
[1768337169152,0.09696796,94426.0,94400.0,0.10044]
[1768337169447,0.09696796,94426.0,94401.0,0.09398875]
[1768337169647,0.19467383,94426.0,94401.0,0.13398875]
[1768337169854,0.09696796,94425.0,94401.0,0.13398875]
[1768337170857,0.09696796,94424.0,94401.0,0.13398875]
[1768337172856,0.09696796,94422.0,94401.0,0.04]
[1768337173058,0.09696796,94421.0,94401.0,0.04]
[1768337173257,0.09696796,94412.0,94401.0,0.04]
[1768337175051,0.09696796,94411.0,94401.0,0.04]
[1768337176360,0.09696796,94398.0,94378.0,0.0954]
[1768337176660,0.09696796,94398.0,94382.0,0.14]
[1768337178061,0.09696796,94398.0,94382.0,0.118]
[1768337178361,0.09812512,94405.0,94383.0,0.09942055]
[1768337178549,0.09812512,94405.0,94383.0,0.14]
[1768337179647,0.09812512,94405.0,94384.0,0.09942055]
[1768337179853,0.01866703,94428.0,94384.0,0.09942055]
[1768337179854,0.09812512,94420.0,94394.0,0.09942055]
[1768337180058,0.09812512,94420.0,94398.0,0.09942055]
[1768337180254,0.09812512,94420.0,94399.0,0.09942055]
[1768337180563,0.09812512,94420.0,94400.0,0.09942055]
[1768337180760,0.09812512,94420.0,94400.0,0.15942055]
[1768337180962,0.09812512,94420.0,94401.0,0.09942055]
[1768337181163,0.0954,94421.0,94402.0,0.09942055]
[1768337181358,0.0954,94421.0,94402.0,0.12942055]
[1768337183868,0.09812512,94427.0,94405.0,0.09942055]
[1768337184071,0.09812512,94427.0,94406.0,0.09942055]
[1768337184264,0.09812512,94427.0,94406.0,0.10942055]
[1768337184466,0.09812512,94427.0,94406.0,0.01]
[1768337185272,0.09812512,94425.0,94406.0,0.01]
[1768337185766,0.09812512,94425.0,94401.0,0.09942055]
[1768337185962,0.09812512,94425.0,94402.0,0.0954]
[1768337186271,0.09812512,94425.0,94402.0,0.1554]
[1768337186456,0.09812512,94425.0,94403.0,0.0954]
[1768337186662,0.09812512,94425.0,94403.0,0.24482055]
[1768337190958,0.09812512,94425.0,94413.0,0.00529588]
[1768337191570,0.11879308,94428.0,94414.0,0.09722816]
[1768337191571,0.01891246,94428.0,94414.0,0.09722816]
[1768337191776,0.09812512,94439.0,94417.0,0.09942055]
[1768337191969,0.11633972,94439.0,94417.0,0.09942055]
[1768337192775,0.11633972,94439.0,94416.0,0.09722816]
[1768337192776,0.09812512,94438.0,94415.0,0.0954]
[1768337193076,0.09812512,94438.0,94415.0,0.19482055]
[1768337193475,0.09812512,94438.0,94415.0,0.17882055]
[1768337194668,0.09812512,94438.0,94416.0,0.09942055]
[1768337195870,0.09812512,94438.0,94417.0,0.0954]
[1768337196083,0.19394681,94438.0,94417.0,0.0954]
[1768337196379,0.19394681,94438.0,94413.0,0.00529588]
[1768337196380,0.0993624,94431.0,94418.0,0.0954]
[1768337196570,0.09582169,94437.0,94418.0,0.0954]
[1768337196772,0.0993624,94436.0,94418.0,0.0954]
[1768337197980,0.0993624,94436.0,94418.0,0.1054]
[1768337198577,0.09582169,94435.0,94418.0,0.1054]
[1768337198882,0.19518409,94435.0,94418.0,0.1054]
[1768337199177,0.0993624,94434.0,94418.0,0.1054]
[1768337200184,0.0993624,94434.0,94418.0,0.01]
[1768337201284,0.0993624,94432.0,94418.0,0.01]
[1768337201470,0.19518409,94432.0,94418.0,0.01]
[1768337201674,0.0993624,94430.0,94418.0,0.01]
[1768337203879,0.0993624,94426.0,94418.0,0.02]
[1768337204079,0.0993624,94424.0,94418.0,0.02]
[1768337204881,0.09582169,94431.0,94418.0,0.02]
[1768337205088,0.0993624,94430.0,94420.0,0.09340056]
[1768337205492,0.0993624,94430.0,94418.0,0.010594]
[1768337205689,0.0993624,94437.0,94420.0,0.18680112]
[1768337205884,0.0182146,94439.0,94427.0,0.09340056]
[1768337206081,0.0993624,94444.0,94423.0,0.010593]
[1768337206581,0.0993624,94443.0,94420.0,0.0954]
[1768337206784,0.0993624,94442.0,94420.0,0.1054]
[1768337206983,0.0993624,94442.0,94430.0,0.09340056]
[1768337207294,0.00529476,94433.0,94424.0,0.010593]
[1768337207478,0.09582169,94439.0,94410.0,0.0954]
[1768337207680,0.0993624,94437.0,94414.0,0.0929901]
[1768337207885,0.0993624,94437.0,94417.0,0.010594]
[1768337208084,0.0993624,94437.0,94419.0,0.010594]
[1768337208085,0.0001589,94435.0,94419.0,0.010594]
[1768337208285,0.0001589,94435.0,94421.0,0.010593]
[1768337208584,0.0001589,94435.0,94421.0,0.02]
[1768337208987,0.0001589,94435.0,94421.0,0.0974]
[1768337209183,0.01823163,94442.0,94425.0,0.0929901]
[1768337209387,0.0993624,94455.0,94431.0,0.0929901]
[1768337209593,0.09582169,94466.0,94441.0,0.0929901]
[1768337209793,0.01891291,94459.0,94440.0,0.0929901]
[1768337209980,0.01891291,94459.0,94435.0,0.09554226]
[1768337209981,0.0993624,94458.0,94441.0,0.0954]
[1768337210185,0.0993624,94458.0,94436.0,0.0929901]
[1768337210392,0.0993624,94458.0,94438.0,0.0929901]
[1768337210691,0.0993624,94458.0,94440.0,0.00015881]
[1768337210895,0.0993624,94456.0,94440.0,0.00015881]
[1768337211194,0.0993624,94454.0,94441.0,0.0954]
[1768337212991,0.0993624,94453.0,94441.0,0.0954]
[1768337213198,0.0993624,94452.0,94428.0,0.0929901]
[1768337213495,0.09582169,94447.0,94429.0,0.09536]
[1768337213704,0.0993624,94446.0,94429.0,0.15536]
[1768337214289,0.0993624,94445.0,94429.0,0.15536]